Cogmind - Beta 14 @@@ ROGUE MODE // 2024.11.26 @ 13:31:11 Player: MarKhan Result: Destroyed by H-61 Shepherd with Heavy Assault Cannon Performance ------------- Evolutions (2) 1000 Regions Visited (7) 1400 Robots Destroyed (0) 0 Value Destroyed (0) 0 Prototype IDs (0) 0 Alien Tech Used (0) 0 Bonus (670) 670 TOTAL SCORE: 3070 Bonus ------- Pacifist 470 Entered Garrisons 200 Cogmind --------- Core Integrity 0/550 Matter 286/300 Energy 99/100 System Corruption 1% Temperature Cool (0) Movement Core (50) Location -8/Materials Parts ------- > --- POWER (5) -------- (None) > --- PROPULSION (2) --- (None) > --- UTILITY (2) ------ (None) > --- WEAPON (2) ------- (None) > --- INVENTORY (5) ---- (None) Peak State ------------ None Favorites ----------- Power None Propulsion None Utility None Weapon None Build | -11 -10 -10 -9 -9 -8 -8 -8 ------- Run | Yrd Mat Min Mat Min Mat Gar Mat Slots Evolved 4 | . . . 2 . 2 . . Power 4 | . . . 2 . 2 . . Propulsion . | . . . . . . . . Utility . | . . . . . . . . Weapon . | . . . . . . . . Parts Attached . | . . . . . . . . Power . | . . . . . . . . Engine . | . . . . . . . . Core . | . . . . . . . . Reactor . | . . . . . . . . Propulsion . | . . . . . . . . Treads . | . . . . . . . . Leg . | . . . . . . . . Wheel . | . . . . . . . . Hover . | . . . . . . . . Flight . | . . . . . . . . Utility . | . . . . . . . . Device . | . . . . . . . . Storage . | . . . . . . . . Processor . | . . . . . . . . Hackware . | . . . . . . . . Protection . | . . . . . . . . Artifact . | . . . . . . . . Weapon . | . . . . . . . . Energy Gun . | . . . . . . . . Energy Cannon . | . . . . . . . . Ballistic Gun . | . . . . . . . . Ballistic Cannon . | . . . . . . . . Launcher . | . . . . . . . . Special Weapon . | . . . . . . . . Impact Weapon . | . . . . . . . . Slashing Weapon . | . . . . . . . . Piercing Weapon . | . . . . . . . . Special Melee Weapon . | . . . . . . . . Unidentified Prototypes . | . . . . . . . . Parts Lost . | . . . . . . . . Power . | . . . . . . . . Propulsion . | . . . . . . . . Utility . | . . . . . . . . Weapon . | . . . . . . . . Highest Loss Streak . | . . . . . . . . To Critical Strikes . | . . . . . . . . Average Slot Usage (%) . | . . . . . . . . Peak Build Rating . | . . . . . . . . Average Rating . | . . . . . . . . On Entrance . | . . . . . . . . Naked Turns 464 | . 10 45 37 63 80 193 36 Heaviest Build . | . . . . . . . . Greatest Support 3 | 3 3 3 3 3 3 3 3 Greatest Overweight (x) . | . . . . . . . . Average Overweight (x) . | . . . . . . . . Largest Inventory Capacity 5 | 5 5 5 5 5 5 5 5 Average Capacity 5 | 5 5 5 5 5 5 5 5 Most Carried . | . . . . . . . . Average Carried . | . . . . . . . . Final Capacity 5 | 5 5 5 5 5 5 5 5 Final Carried . | . . . . . . . . Class Distribution -------------------- 100% | Mutant Dominant Class ---------------- Mutant | -10/Materials Mutant | -10/Mines Mutant | -9/Materials Mutant | -9/Mines Mutant | -8/Materials Mutant | -8/Garrison Mutant | -8/Materials Resources | -11 -10 -10 -9 -9 -8 -8 -8 ----------- Run | Yrd Mat Min Mat Min Mat Gar Mat Matter Collected 162 | 56 . . . 106 . . . Remotely . | . . . . . . . . Salvage Created . | . . . . . . . . Parts . | . . . . . . . . Haulers Intercepted . | . . . . . . . . Recyclers Shooed . | . . . . . . . . Parts Field Recycled . | . . . . . . . . Retrieved Matter . | . . . . . . . . Parts Self-Destructed . | . . . . . . . . Prevented . | . . . . . . . . Kills | -11 -10 -10 -9 -9 -8 -8 -8 ------- Run | Yrd Mat Min Mat Min Mat Gar Mat Combat Hostiles Destroyed . | . . . . . . . . Classes Destroyed . | . . . . . . . . Best Kill Streak . | . . . . . . . . Combat Bots Only . | . . . . . . . . Max Kills in Single Turn . | . . . . . . . . Gunslinging . | . . . . . . . . Exploded . | . . . . . . . . Melee . | . . . . . . . . Uniques/NPCs Destroyed . | . . . . . . . . Combat | -11 -10 -10 -9 -9 -8 -8 -8 -------- Run | Yrd Mat Min Mat Min Mat Gar Mat Hostile Shots Fired 77 | . 2 5 6 4 6 51 3 Missed 30 | . 1 2 3 . 4 20 . Damage Taken 831 | . 17 35 72 133 33 448 93 Core 831 | . 17 35 72 133 33 448 93 Absorbed by Shields 44 | . . . . . . 44 . Core Remaining (%) 75 | 100 . 79 . 48 . . . Volleys Fired . | . . . . . . . . Largest . | . . . . . . . . Hottest . | . . . . . . . . Shots Fired . | . . . . . . . . Gun . | . . . . . . . . Cannon . | . . . . . . . . Launcher . | . . . . . . . . Special . | . . . . . . . . Kinetic . | . . . . . . . . Thermal . | . . . . . . . . Explosive . | . . . . . . . . Electromagnetic . | . . . . . . . . Robot Hit Streak . | . . . . . . . . Robot Miss Streak . | . . . . . . . . Penetration Max . | . . . . . . . . Secondary Targets . | . . . . . . . . Shots Hit Robots . | . . . . . . . . Core Hits . | . . . . . . . . Critical Kills . | . . . . . . . . Critical Parts Destroyed . | . . . . . . . . Critical Strikes . | . . . . . . . . Melee Attacks . | . . . . . . . . Impact . | . . . . . . . . Slashing . | . . . . . . . . Piercing . | . . . . . . . . Sneak Attacks . | . . . . . . . . Combat Hostiles . | . . . . . . . . Follow-up Attacks . | . . . . . . . . Damage Inflicted 50 | . 14 . 21 12 . . 3 Guns . | . . . . . . . . Cannons . | . . . . . . . . Explosions . | . . . . . . . . Melee . | . . . . . . . . Ramming 50 | . 14 . 21 12 . . 3 Kinetic . | . . . . . . . . Thermal . | . . . . . . . . Explosive . | . . . . . . . . Electromagnetic . | . . . . . . . . Impact . | . . . . . . . . Slashing . | . . . . . . . . Piercing . | . . . . . . . . Highest Corruption 1 | . . . . . . 1 1 Average Corruption 1 | . . . . . . 1 1 Corruption Purged . | . . . . . . . . Corruption Blocked . | . . . . . . . . Effects 1 | . . . . . . . 1 Data Loss (major) 1 | . . . . . . . 1 Overload Shots . | . . . . . . . . Overflow Damage . | . . . . . . . . Projectiles . | . . . . . . . . Explosions . | . . . . . . . . Melee . | . . . . . . . . Knockbacks . | . . . . . . . . Impact . | . . . . . . . . Kinetic . | . . . . . . . . Secondary . | . . . . . . . . Self-Inflicted Damage 24 | . 7 . 10 6 . . 1 Shots . | . . . . . . . . Rammed 6 | . 1 . 2 1 . 1 1 Targets Rammed 6 | . 1 . 2 1 . 1 1 Kicked . | . . . . . . . . Crushed . | . . . . . . . . Highest Temperature . | . . . . . . . . Average Temperature . | . . . . . . . . Received Heat Transfer 300 | . 6 21 . . 9 255 9 Siege Activations . | . . . . . . . . Robots Corrupted . | . . . . . . . . Combat Hostiles . | . . . . . . . . Parts Fried . | . . . . . . . . Impact Corruptions . | . . . . . . . . Robots Melted . | . . . . . . . . Combat Hostiles . | . . . . . . . . Parts Melted . | . . . . . . . . Heat Transferred . | . . . . . . . . Parts Sabotaged . | . . . . . . . . Parts Stolen . | . . . . . . . . Parts Stripped . | . . . . . . . . Power Chain Reactions . | . . . . . . . . Alert | -11 -10 -10 -9 -9 -8 -8 -8 ------- Run | Yrd Mat Min Mat Min Mat Gar Mat Peak Influence 134 | . 15 35 43 31 46 134 125 Initial 65 | . . 5 13 16 11 29 65 Average 50 | . 13 17 26 19 24 80 93 Maximum Alert Level . | . . . . . . . . Low Security (%) 100 | 100 100 100 100 100 100 100 100 Level 1 . | . . . . . . . . Level 2 . | . . . . . . . . Level 3 . | . . . . . . . . Level 4 . | . . . . . . . . Level 5 . | . . . . . . . . High Security . | . . . . . . . . Max Security . | . . . . . . . . Squads Dispatched 3 | . 1 . . . . . 2 Investigation 1 | . . . . . . . 1 Extermination . | . . . . . . . . Reinforcement 2 | . 1 . . . . . 1 Assault . | . . . . . . . . Garrison . | . . . . . . . . Intercept . | . . . . . . . . Searches Triggered . | . . . . . . . . Construction Impeded . | . . . . . . . . Haulers Reinforced . | . . . . . . . . Active Scanning Responses . | . . . . . . . . Cargo Convoy Interrupts . | . . . . . . . . Stealth | -11 -10 -10 -9 -9 -8 -8 -8 --------- Run | Yrd Mat Min Mat Min Mat Gar Mat Distress Signals 1 | . . . . . . . 1 Communications Jammed . | . . . . . . . . Distress Signals . | . . . . . . . . Times Spotted 31 | . 2 5 3 3 2 11 5 Peak Tracking Total 8 | . 1 3 3 5 2 8 5 Tactical Retreats 4 | . . 1 . . . 3 . Traps | -11 -10 -10 -9 -9 -8 -8 -8 ------- Run | Yrd Mat Min Mat Min Mat Gar Mat Traps Triggered 3 | . . . . . . 3 . Indirectly . | . . . . . . . . Trap Hack Attempts . | . . . . . . . . Triggered . | . . . . . . . . Disarmed . | . . . . . . . . Reprogrammed . | . . . . . . . . Reused . | . . . . . . . . Traps Extracted . | . . . . . . . . Installed . | . . . . . . . . Triggered . | . . . . . . . . Machines | -11 -10 -10 -9 -9 -8 -8 -8 ---------- Run | Yrd Mat Min Mat Min Mat Gar Mat Machines Disabled . | . . . . . . . . Max in Single Turn . | . . . . . . . . Machines Repaired . | . . . . . . . . Machines Dismantled . | . . . . . . . . Machines Sabotaged . | . . . . . . . . Overloaded Fab Kills . | . . . . . . . . Hacking | -11 -10 -10 -9 -9 -8 -8 -8 --------- Run | Yrd Mat Min Mat Min Mat Gar Mat Machines Accessed 5 | . . . . . 2 2 1 Terminals 4 | . . . . . 1 2 1 Fabricators . | . . . . . . . . Repair Stations . | . . . . . . . . Recycling Units . | . . . . . . . . Scanalyzers . | . . . . . . . . Garrison Access 1 | . . . . . 1 . . Total Hacks 10 | . . . . . 3 4 3 Successful 6 | . . . . . 3 2 1 Failed 4 | . . . . . . 2 2 Catastrophic . | . . . . . . . . Database Lockouts . | . . . . . . . . Manual 4 | . . . . . 1 . 3 Terminals 9 | . . . . . 2 4 3 Fabricators . | . . . . . . . . Repair Stations . | . . . . . . . . Recycling Units . | . . . . . . . . Scanalyzers . | . . . . . . . . Garrison Access 1 | . . . . . 1 . . Terminal Hacks 4 | . . . . . 1 2 1 Emergency Access Points 1 | . . . . . . 1 . Zone Layout 2 | . . . . . 1 . 1 Security Stations 1 | . . . . . . 1 . Fabricator Hacks . | . . . . . . . . Repair Station Hacks . | . . . . . . . . Recycling Unit Hacks . | . . . . . . . . Scanalyzer . | . . . . . . . . Garrison Access Hacks 1 | . . . . . 1 . . Unlock Access 1 | . . . . . 1 . . Unauthorized Hacks 1 | . . . . . 1 . . Terminals 1 | . . . . . 1 . . Botnet 1 | . . . . . 1 . . Fabricators . | . . . . . . . . Repair Stations . | . . . . . . . . Recycling Units . | . . . . . . . . Scanalyzers . | . . . . . . . . Garrison Access . | . . . . . . . . Data Cores Recovered . | . . . . . . . . Used . | . . . . . . . . Hacking Detections 5 | . . . . . 2 2 1 Full Trace Events 1 | . . . . . . . 1 Feedback Events . | . . . . . . . . Feedback Blocked . | . . . . . . . . Robot Schematics Acquired . | . . . . . . . . Robots Built . | . . . . . . . . Authchips . | . . . . . . . . Time . | . . . . . . . . Total Robot Build Rating . | . . . . . . . . Part Schematics Acquired . | . . . . . . . . Parts Built . | . . . . . . . . Authchips . | . . . . . . . . Time . | . . . . . . . . Total Part Build Rating . | . . . . . . . . Parts Repaired . | . . . . . . . . Time . | . . . . . . . . Parts Recycled . | . . . . . . . . Recycled Matter . | . . . . . . . . Retrieved Matter . | . . . . . . . . Retrieved Components . | . . . . . . . . Parts Scanalyzed . | . . . . . . . . Part Schematics Acquired . | . . . . . . . . Parts Damaged . | . . . . . . . . Bothacking | -11 -10 -10 -9 -9 -8 -8 -8 ------------ Run | Yrd Mat Min Mat Min Mat Gar Mat Used RIF Installer . | . . . . . . . . Robots Hacked . | . . . . . . . . Non-combat . | . . . . . . . . Combat . | . . . . . . . . Robot Hacks Applied . | . . . . . . . . Relay Couplers Released . | . . . . . . . . Fabnet Peak Effective % . | . . . . . . . . Robots Rewired . | . . . . . . . . Allies Hacked . | . . . . . . . . Hacks Repelled . | . . . . . . . . Allies | -11 -10 -10 -9 -9 -8 -8 -8 -------- Run | Yrd Mat Min Mat Min Mat Gar Mat Total Allies . | . . . . . . . . Largest Group . | . . . . . . . . Highest-Rated Group . | . . . . . . . . Highest-Rated Ally . | . . . . . . . . Total Orders . | . . . . . . . . Ally Attacks . | . . . . . . . . Total Damage . | . . . . . . . . Kills . | . . . . . . . . Allies Corrupted . | . . . . . . . . Allies Melted . | . . . . . . . . Intel | -11 -10 -10 -9 -9 -8 -8 -8 ------- Run | Yrd Mat Min Mat Min Mat Gar Mat Robot Analysis Total . | . . . . . . . . Derelict Logs Recovered 1 | . . . . 1 . . . Drone Launches . | . . . . . . . . Drone Recoveries . | . . . . . . . . Exploration | -11 -10 -10 -9 -9 -8 -8 -8 ------------- Run | Yrd Mat Min Mat Min Mat Gar Mat Turns Passed 473 | 9 10 45 37 63 80 193 36 Spaces Moved 856 | 18 19 90 70 123 159 308 69 Core 856 | 18 19 90 70 123 159 308 69 Treads . | . . . . . . . . Legs . | . . . . . . . . Wheels . | . . . . . . . . Hover . | . . . . . . . . Flight . | . . . . . . . . Fastest Speed 50 | 50 50 50 50 50 50 50 50 Average Speed 50 | 50 50 50 50 50 50 50 50 Slowest Speed 50 | 50 50 50 50 50 50 50 50 Overloaded Moves . | . . . . . . . . Propulsion Burnouts . | . . . . . . . . Robots Hopped . | . . . . . . . . Cave-ins Triggered . | . . . . . . . . Exploration Rate (%) 22 | 3 6 32 13 41 19 51 11 Regions Visited 7 Branch Regions 2 Pre-discovered Areas . | . . . . . . . . Known Exits Taken 1 | . . . . . 1 . . Unknown Exits Taken 5 | 1 1 1 1 1 . . . Scrap Searched 2 | . . . . 2 . . . Spaces Dug . | . . . . . . . . Terrain Destroyed . | . . . . . . . . Melee . | . . . . . . . . Projectile . | . . . . . . . . AOE . | . . . . . . . . Terrain Rammed . | . . . . . . . . Walls Destroyed . | . . . . . . . . Machines Disabled . | . . . . . . . . Actions | -11 -10 -10 -9 -9 -8 -8 -8 --------- Run | Yrd Mat Min Mat Min Mat Gar Mat Total 893 | 17 19 89 71 123 159 345 70 Wait . | . . . . . . . . Move 851 | 17 19 89 70 122 159 306 69 Hop . | . . . . . . . . Pick Up . | . . . . . . . . Fast Attach . | . . . . . . . . Attach . | . . . . . . . . Detach . | . . . . . . . . Swap . | . . . . . . . . Drop . | . . . . . . . . Fire . | . . . . . . . . Melee . | . . . . . . . . Ram 4 | . . . 1 1 . 1 1 Kick . | . . . . . . . . Crush . | . . . . . . . . Escape Stasis 38 | . . . . . . 38 . Rewire . | . . . . . . . . Trap . | . . . . . . . . Miscellaneous . | . . . . . . . . Route ------- -11/Scrapyard -10/Materials -10/Mines -9/Materials -9/Mines -8/Materials -8/Garrison (discovered 2 exits: *Mat x2) -8/Materials History --------- Turn | Location | Event 3 | -11/Scrapyard | Discovered new exit (range 15) 10 | -11/Scrapyard | Entered Materials 13 | -10/Materials | Discovered new exit (range 14) 20 | -10/Materials | Entered Mines 61 | -10/Mines | Discovered new exit (range 10) 65 | -10/Mines | Entered Materials 65 | -9/Materials | Evolved 2 slots: Power x2 95 | -9/Materials | Discovered new exit (range 15) 102 | -9/Materials | Entered Mines 136 | -9/Mines | Assembled infested the area 137 | -9/Mines | Found a hidden stash of uninstalled traps 155 | -9/Mines | Core integrity fell below 50% 158 | -9/Mines | Learned Materials stockpile data 162 | -9/Mines | Discovered new exit (range 7) 165 | -9/Mines | Entered Materials 165 | -8/Materials | Evolved 2 slots: Power x2 245 | -8/Materials | Identified exit to Garrison 245 | -8/Materials | Entered Garrison 305 | -8/Garrison | Build established: Mutant 344 | -8/Garrison | Discovered new exit (range 13) 351 | -8/Garrison | Attempted to access garrison exit controls, blocked by remote lockdown 369 | -8/Garrison | Triggered checkpoint 375 | -8/Garrison | Learned Materials security intel 382 | -8/Garrison | Core integrity fell below 50% 417 | -8/Garrison | Triggered checkpoint 418 | -8/Garrison | Core integrity fell below 20% 433 | -8/Garrison | Discovered new exit (range 11) 438 | -8/Garrison | Entered Materials 474 | -8/Materials | Destroyed by H-61 Shepherd with Heavy Assault Cannon Last Messages --------------- alarm sounds. 00433_ EXIT=FOUND LOCATION=UNKNOWN GOAL=ESCAPE Loading Materials security intel (x10)... 00459_ K-01 Serf collects debris. 00462_ System corrupted: Substantial component data lost. 00464_ ALERT: Suspicious intruders detected, dispatching Cutter reinforcements to area. 00465_ Connecting with Terminal... 00465_ Current location identified: Materials >>Layout(Zone) Retrieving Zone 5A layout... Downloaded map data. 00465_ Connecting with Terminal... 00465_ ALERT: Suspicious activity at Terminal M007. Dispatching Investigation squad. 00471_ Slammed into T-07 Excavator. 00471_ Destabilizing: Core damaged (-5). Map ----- +----------------------------------------------------+ | ?????????????????????????????????????????????????? | | ?????????????????????????????????????????????????? | | # # "" ######/## # ??????????????????? | | ### ### "T / # ??????????????????? | | #?# #?# "" #### # ??????????????????? | | #?# #?# "" #??# ##??????????????????? | | #?# #?# #??# #### ##??????????????????? | | #?# #########?# #??# ##??????????????????? | | ??# ## ###+###### ####??????????????????? | | ?## ## "" # # ## ??????????????????? | | ?# # ""S # + ## ??????????????????? | | ?# # "" # # ## ??????????????????? | | ?# + # # ## ??????????????????? | | ?# # ########## ## ??????????????????? | | ?# ################# ## ??????????????????? | | ?### ###?????# ] ## ## ??????????????????? | | ???# #???????#"" ## ## ??????????????????? | | ???# #########"T ## ## ??????????????????? | | ???# ##! #"" ] ## ## ??????????????????? | | ???# ## # ## ## ??????????????????? | | ???# ## """ # """" ##o ## ??????????????????? | | #### ## """ # """" ! ## ## ??##+#????????????? | | ## ## """ # """" ## ## k ####?????????? | | ## ## # # # ?????????? | | ## ####+########+#### #????????????? | | # @ #????????????? | | + ###w % #???????????????? | | # #?# ######???????????????? | | # ############ ###### ### ??????????????????? | | # ############+# # ### ??????????????????? | | # ## [== # + ??????????????????? | | ### ## [=! # # ??????????????????? | | ?# [# ==! # # "" ??????????????????? | | ?# # #????+ "" ???????????????????? | | ?# + #????? "T ??????????????????? | | ?# # #????? "?????????????????????? | | ?# # #????? "?????????????????????? | | ?## ##?###########????? ?????????????????????? | | ??# #?? #???????? ?????????????????????? | | " # # +???????? ?????????????????????? | | " + + #???????? ??????????????????????? | | " # # """ #????????????????????????????????? | | ??# #?? """??????????????????????????????????? | | ??# #???? """??????????????????????????????????? | | ??#####?????? ?????????????????????????????????? | | ??????????????? #????????????????????????????????? | | ?????????????????????????????????????????????????? | | ?????????????????????????????????????????????????? | | ?????????????????????????????????????????????????? | | ?????????????????????????????????????????????????? | +----------------------------------------------------+ Best States ------------- Heat Dissipation 31 Energy Generation 5 Energy Capacity 100 Matter Stores 283 Matter Capacity 300 Sight Range 16 Terrain Scan Density 10 Evasion (%) 50 Item Schematics ----------------- None Robot Schematics ------------------ None Fabricated ------------ Nothing Alien Tech Used ----------------- None Achievements -------------- None Challenges ------------ None Game ------ Seed BladeTargetingCorpse Manual? 0 Play Time 00:06:42 Cumulative 143.0 hours Start 2024.11.26 @ 13:25:18 End 2024.11.26 @ 13:31:11 Sessions 1 Manual Loads 0 Difficulty Rogue Special Mode None Game No. 130 Rogue 130 Adventurer 0 Explorer 0 Win Type - Total 3 Types 3/0/0/0/0/0/0/0/0 Lore% 54 Gallery% 58 Achievement% 55 Wizard Run 0 Options --------- Layout 1 ASCII 0 Keyboard 1 Movement Arrows Keybinds 0 Fullscreen 0 Font 20/Smallcaps Map View 50x35 Zoom Use 0% Tactical HUD 1 Map Filters NONE Filters NONE Steam 1 RUN: ae8d031e-e7ce-4fa2-991c-882fdd241fba